[Event "2026 European Womens Championship"]
[Site "Batumi, GE"]
[Date "2026.06.04"]
[Round "10"]
[White "Urh, Zala"]
[Black "Zeliantsova, Kseniya"]
[Result "1/2-1/2"]
[Board "43"]
[TimeControl "5400+30"]
[WhiteFideId "14611481"]
[BlackFideId "13512617"]
[WhiteElo "2263"]
[BlackElo "2176"]
[WhiteTitle "WIM"]
[BlackTitle "WFM"]
[WhiteClock "0:03:13"]
[BlackClock "0:07:39"]
[Variant "Standard"]

1. d4 {[%clk 1:30:58]}  d6 {[%clk 1:30:51]} 2. c4 {[%clk 1:31:23]}  e5 {[%clk 1:31:15]} 3. Nc3 {[%clk 1:31:48]}  exd4 {[%clk 1:31:23]}
4. Qxd4 {[%clk 1:32:13]}  Nc6 {[%clk 1:31:43]} 5. Qd2 {[%clk 1:32:38]}  Nf6 {[%clk 1:31:08]} 6. e4 {[%clk 1:32:53]}  g6 {[%clk 1:30:26]}
7. b3 {[%clk 1:26:39]}  Bg7 {[%clk 1:28:53]} 8. Bb2 {[%clk 1:27:04]}  O-O {[%clk 1:28:29]} 9. Bd3 {[%clk 1:27:25]}  Re8 {[%clk 1:27:29]}
10. Nge2 {[%clk 1:26:32]}  a5 {[%clk 1:25:34]} 11. O-O {[%clk 1:25:03]}  b6 {[%clk 1:16:34]} 12. f3 {[%clk 1:17:15]}  Nb4 {[%clk 1:10:36]}
13. Rad1 {[%clk 1:13:42]}  Nxd3 {[%clk 1:04:36]} 14. Qxd3 {[%clk 1:14:07]}  Nd7 {[%clk 1:01:32]} 15. Nd4 {[%clk 1:10:31]}  Nc5 {[%clk 1:00:22]}
16. Qc2 {[%clk 1:06:33]}  Bd7 {[%clk 0:57:33]} 17. Nd5 {[%clk 1:02:04]}  c6 {[%clk 0:50:41]} 18. Nc3 {[%clk 0:59:21]}  Qe7 {[%clk 0:46:16]}
19. Kh1 {[%clk 0:55:18]}  Rad8 {[%clk 0:42:55]} 20. Nce2 {[%clk 0:46:31]}  Qf8 {[%clk 0:36:16]} 21. Bc3 {[%clk 0:41:14]}  Be5 {[%clk 0:31:10]}
22. Be1 {[%clk 0:39:04]}  Na6 {[%clk 0:26:50]} 23. f4 {[%clk 0:29:49]}  Bf6 {[%clk 0:21:34]} 24. f5 {[%clk 0:15:27]}  Qg7 {[%clk 0:18:50]}
25. Bc3 {[%clk 0:05:22]}  Be5 {[%clk 0:14:47]} 26. f6 {[%clk 0:04:35]}  Qh6 {[%clk 0:12:17]} 27. Nf3 {[%clk 0:04:54]}  Nb4 {[%clk 0:09:26]}
28. Qb2 {[%clk 0:03:45]}  Bxc3 {[%clk 0:08:50]} 29. Nxc3 {[%clk 0:04:11]}  Bg4 {[%clk 0:09:02]} 30. a3 {[%clk 0:03:17]}  Na6 {[%clk 0:09:20]}
31. b4 {[%clk 0:03:45]}  axb4 {[%clk 0:07:30]} 32. axb4 {[%clk 0:04:11]}  Be6 {[%clk 0:07:40]} 33. b5 {[%clk 0:03:11]}  Nc5 {[%clk 0:07:19]}
34. bxc6 {[%clk 0:01:21]}  Bxc4 {[%clk 0:07:26]} 35. c7 {[%clk 0:01:39]}  Rc8 {[%clk 0:06:11]} 36. Rfe1 {[%clk 0:00:52]}  Nd3 {[%clk 0:05:32]}
37. Rxd3 {[%clk 0:01:19]}  Bxd3 {[%clk 0:05:58]} 38. Qxb6 {[%clk 0:01:12]}  Bc4 {[%clk 0:03:48]} 39. Qxd6 {[%clk 0:01:33]}  Qf8 {[%clk 0:01:56]}
40. e5 {[%clk 0:00:39]}  Re6 {[%clk 0:00:43]} 41. Qd7 {[%clk 0:22:31]}  Qe8 {[%clk 0:23:04]} 42. Rd1 {[%clk 0:18:25]}  Qxd7 {[%clk 0:16:29]}
43. Rxd7 {[%clk 0:18:49]}  Kf8 {[%clk 0:15:00]} 44. Ne4 {[%clk 0:11:49]}  Ke8 {[%clk 0:10:48]} 45. Re7+ {[%clk 0:09:35]}  Rxe7 {[%clk 0:09:16]}
46. Nd6+ {[%clk 0:09:51]}  Kd7 {[%clk 0:09:41]} 47. fxe7 {[%clk 0:08:16]}  Ba6 {[%clk 0:09:05]} 48. Nxc8 {[%clk 0:02:41]}  Bxc8 {[%clk 0:09:27]}
49. Ng5 {[%clk 0:02:21]}  Kxe7 {[%clk 0:08:37]} 50. Nxh7 {[%clk 0:02:47]}  Ke6 {[%clk 0:07:29]} 51. Ng5+ {[%clk 0:03:09]}  Kxe5 {[%clk 0:07:25]}
52. Nxf7+ {[%clk 0:03:35]}  Ke6 {[%clk 0:07:10]} 53. Ng5+ {[%clk 0:00:47]}  Kd6 {[%clk 0:06:45]} 54. Nf3 {[%clk 0:00:56]}  Kxc7 {[%clk 0:06:16]}
55. Nh4 {[%clk 0:01:17]}  g5 {[%clk 0:06:36]} 56. Nf3 {[%clk 0:01:42]}  g4 {[%clk 0:06:38]} 57. Nd2 {[%clk 0:01:40]}  Kd6 {[%clk 0:06:43]}
58. Kg1 {[%clk 0:01:57]}  Ke5 {[%clk 0:06:49]} 59. Kf2 {[%clk 0:02:19]}  Kf5 {[%clk 0:06:22]} 60. Kg3 {[%clk 0:02:27]}  Be6 {[%clk 0:06:35]}
61. Nf1 {[%clk 0:01:55]}  Kg5 {[%clk 0:06:01]} 62. Ne3 {[%clk 0:02:15]}  Bd7 {[%clk 0:05:41]} 63. Nd5 {[%clk 0:01:19]}  Be6 {[%clk 0:05:35]}
64. Nc3 {[%clk 0:01:28]}  Bf5 {[%clk 0:05:46]} 65. Kf2 {[%clk 0:01:29]}  Bd7 {[%clk 0:05:11]} 66. g3 {[%clk 0:01:38]}  Kf5 {[%clk 0:04:43]}
67. Ke3 {[%clk 0:02:06]}  Ke5 {[%clk 0:04:44]} 68. Ne2 {[%clk 0:02:20]}  Bc6 {[%clk 0:03:55]} 69. Nf4 {[%clk 0:01:56]}  Be4 {[%clk 0:03:57]}
70. Ne6 {[%clk 0:01:03]}  Bc6 {[%clk 0:03:20]} 71. Nc5 {[%clk 0:01:15]}  Bb5 {[%clk 0:03:34]} 72. Ne4 {[%clk 0:01:29]}  Bd7 {[%clk 0:03:24]}
73. Nf2 {[%clk 0:00:50]}  Bf5 {[%clk 0:03:43]} 74. Nd3+ {[%clk 0:00:57]}  Bxd3 {[%clk 0:03:31]} 75. Kxd3 {[%clk 0:01:25]}  Kd5 {[%clk 0:03:56]}
76. Ke3 {[%clk 0:01:50]}  Ke5 {[%clk 0:04:22]} 77. Kf2 {[%clk 0:02:16]}  Kf6 {[%clk 0:03:40]} 78. Kg2 {[%clk 0:02:27]}  Kg6 {[%clk 0:04:05]}
79. Kf1 {[%clk 0:02:39]}  Kf5 {[%clk 0:04:17]} 80. Kf2 {[%clk 0:02:59]}  Kf6 {[%clk 0:04:30]} 81. Ke1 {[%clk 0:01:40]}  Ke5 {[%clk 0:04:51]}
82. Ke2 {[%clk 0:02:03]}  Ke6 {[%clk 0:04:36]} 83. Kd2 {[%clk 0:01:50]}  Kd6 {[%clk 0:05:01]} 84. Kd1 {[%clk 0:02:14]}  Kd5 {[%clk 0:05:23]}
85. Ke1 {[%clk 0:02:32]}  Ke5 {[%clk 0:05:47]} 86. Kf2 {[%clk 0:02:51]}  Kf6 {[%clk 0:05:59]} 87. h4 {[%clk 0:01:50]}  gxh3 {[%clk 0:06:22]}
88. g4 {[%clk 0:02:17]}  Kg5 {[%clk 0:06:48]} 89. Kg3 {[%clk 0:02:45]}  h2 {[%clk 0:07:12]} 90. Kxh2 {[%clk 0:03:13]}  Kxg4 {[%clk 0:07:39]} 1/2-1/2

[Event "2026 European Womens Championship"]
[Site "Batumi, GE"]
[Date "2026.06.04"]
[Round "10"]
[White "Kirtadze, Anastasia"]
[Black "Huseynova, Lala"]
[Result "0-1"]
[Board "44"]
[TimeControl "5400+30"]
[WhiteFideId "13622714"]
[BlackFideId "13431781"]
[WhiteElo "2233"]
[BlackElo "2149"]
[WhiteTitle "WIM"]
[BlackTitle "WFM"]
[WhiteClock "0:02:07"]
[BlackClock "0:07:08"]
[Variant "Standard"]

1. c4 {[%clk 1:29:54]}  e6 {[%clk 1:30:24]} 2. Nf3 {[%clk 1:29:44]}  Nf6 {[%clk 1:29:58]} 3. Nc3 {[%clk 1:28:35]}  d5 {[%clk 1:28:49]}
4. e3 {[%clk 1:28:55]}  Be7 {[%clk 1:28:10]} 5. Qc2 {[%clk 1:27:39]}  c5 {[%clk 1:22:48]} 6. cxd5 {[%clk 1:26:09]}  exd5 {[%clk 1:20:43]}
7. d4 {[%clk 1:25:40]}  Nc6 {[%clk 1:11:48]} 8. dxc5 {[%clk 1:22:58]}  Bg4 {[%clk 1:09:24]} 9. Nd4 {[%clk 1:18:44]}  Bxc5 {[%clk 1:07:09]}
10. Nxc6 {[%clk 1:15:22]}  bxc6 {[%clk 1:07:20]} 11. h3 {[%clk 1:13:08]}  Be6 {[%clk 1:03:24]} 12. a3 {[%clk 1:08:39]}  Bd6 {[%clk 0:57:02]}
13. Bd2 {[%clk 1:05:21]}  O-O {[%clk 0:53:43]} 14. Bd3 {[%clk 1:02:48]}  c5 {[%clk 0:47:37]} 15. O-O {[%clk 0:49:44]}  Qd7 {[%clk 0:41:31]}
16. Be1 {[%clk 0:37:01]}  Rab8 {[%clk 0:35:42]} 17. Qe2 {[%clk 0:32:26]}  Bf5 {[%clk 0:27:44]} 18. Rd1 {[%clk 0:27:12]}  Rfd8 {[%clk 0:23:41]}
19. f3 {[%clk 0:18:28]}  Bxd3 {[%clk 0:18:17]} 20. Rxd3 {[%clk 0:18:37]}  Qf5 {[%clk 0:17:10]} 21. e4 {[%clk 0:15:08]}  Qe6 {[%clk 0:16:18]}
22. Bh4 {[%clk 0:10:00]}  Be5 {[%clk 0:14:32]} 23. Bxf6 {[%clk 0:03:53]}  Bxf6 {[%clk 0:14:40]} 24. Re1 {[%clk 0:00:46]}  d4 {[%clk 0:12:43]}
25. Nd1 {[%clk 0:01:03]}  c4 {[%clk 0:12:42]} 26. Rd2 {[%clk 0:01:28]}  Bg5 {[%clk 0:12:52]} 27. e5 {[%clk 0:00:53]}  Qh6 {[%clk 0:07:34]}
28. e6 {[%clk 0:00:43]}  Bxd2 {[%clk 0:07:26]} 29. exf7+ {[%clk 0:00:56]}  Kxf7 {[%clk 0:07:49]} 30. Qxc4+ {[%clk 0:00:52]}  Kf8 {[%clk 0:08:06]}
31. Re6 {[%clk 0:00:36]}  Qg5 {[%clk 0:07:57]} 32. Re4 {[%clk 0:00:32]}  Qd5 {[%clk 0:07:17]} 33. Qd3 {[%clk 0:00:33]}  Bg5 {[%clk 0:07:34]}
34. h4 {[%clk 0:00:46]}  Bf6 {[%clk 0:07:52]} 35. g4 {[%clk 0:01:12]}  Qb3 {[%clk 0:06:56]} 36. Qf1 {[%clk 0:01:08]}  Re8 {[%clk 0:06:52]}
37. Rf4 {[%clk 0:01:23]}  Kg8 {[%clk 0:07:06]} 38. g5 {[%clk 0:01:43]}  Be5 {[%clk 0:07:25]} 39. Re4 {[%clk 0:02:07]}  Bc7 {[%clk 0:07:08]} 0-1

[Event "2026 European Womens Championship"]
[Site "Batumi, GE"]
[Date "2026.06.04"]
[Round "10"]
[White "Mamedjarova, Turkan"]
[Black "Mkrtchyan, Anahit H."]
[Result "1-0"]
[Board "45"]
[TimeControl "5400+30"]
[WhiteFideId "13402005"]
[BlackFideId "13314858"]
[WhiteElo "2222"]
[BlackElo "2107"]
[WhiteTitle "WGM"]
[WhiteClock "0:32:52"]
[BlackClock "0:23:20"]
[Variant "Standard"]

1. d4 {[%clk 1:30:50]}  Nf6 {[%clk 1:30:54]} 2. Nf3 {[%clk 1:30:57]}  g6 {[%clk 1:31:15]} 3. e3 {[%clk 1:30:56]}  Bg7 {[%clk 1:31:38]}
4. Bc4 {[%clk 1:31:18]}  d6 {[%clk 1:30:00]} 5. O-O {[%clk 1:31:31]}  O-O {[%clk 1:30:00]} 6. Nbd2 {[%clk 1:31:37]}  Nbd7 {[%clk 1:29:11]}
7. c3 {[%clk 1:28:27]}  e5 {[%clk 1:27:33]} 8. e4 {[%clk 1:26:32]}  a5 {[%clk 1:24:52]} 9. a4 {[%clk 1:26:21]}  Qe7 {[%clk 1:19:44]}
10. Re1 {[%clk 1:25:40]}  Kh8 {[%clk 1:18:47]} 11. dxe5 {[%clk 1:23:44]}  dxe5 {[%clk 1:17:51]} 12. b3 {[%clk 1:22:02]}  Nh5 {[%clk 1:11:12]}
13. Nf1 {[%clk 1:18:47]}  Nf4 {[%clk 1:03:24]} 14. Ne3 {[%clk 1:14:47]}  c6 {[%clk 1:00:48]} 15. Ba3 {[%clk 1:13:58]}  Nc5 {[%clk 0:57:46]}
16. Qc2 {[%clk 1:12:56]}  Be6 {[%clk 0:44:46]} 17. Rad1 {[%clk 1:10:22]}  b6 {[%clk 0:32:08]} 18. Rd2 {[%clk 1:00:54]}  f5 {[%clk 0:27:39]}
19. Bxc5 {[%clk 0:54:30]}  bxc5 {[%clk 0:27:30]} 20. Bxe6 {[%clk 0:51:05]}  Qxe6 {[%clk 0:27:53]} 21. Red1 {[%clk 0:50:45]}  Rab8 {[%clk 0:21:16]}
22. c4 {[%clk 0:46:09]}  Qc8 {[%clk 0:18:11]} 23. exf5 {[%clk 0:29:56]}  gxf5 {[%clk 0:18:31]} 24. Nh4 {[%clk 0:25:22]}  Ne6 {[%clk 0:11:34]}
25. Nhxf5 {[%clk 0:23:48]}  Nd4 {[%clk 0:11:43]} 26. Nxd4 {[%clk 0:24:10]}  cxd4 {[%clk 0:12:06]} 27. Nf1 {[%clk 0:24:37]}  Qb7 {[%clk 0:07:33]}
28. Rb1 {[%clk 0:24:24]}  c5 {[%clk 0:05:51]} 29. Ng3 {[%clk 0:24:22]}  Qc6 {[%clk 0:04:36]} 30. Ne4 {[%clk 0:21:23]}  Rf4 {[%clk 0:03:05]}
31. Re2 {[%clk 0:20:42]}  Rb7 {[%clk 0:02:44]} 32. Qd3 {[%clk 0:20:24]}  Re7 {[%clk 0:02:11]} 33. Rbe1 {[%clk 0:20:36]}  Rf8 {[%clk 0:01:00]}
34. Ng3 {[%clk 0:18:36]}  Qg6 {[%clk 0:00:36]} 35. Re4 {[%clk 0:15:24]}  Rf4 {[%clk 0:00:36]} 36. Qd2 {[%clk 0:14:35]}  Bh6 {[%clk 0:00:38]}
37. Qxa5 {[%clk 0:13:20]}  Rxe4 {[%clk 0:00:45]} 38. Nxe4 {[%clk 0:12:53]}  d3 {[%clk 0:00:34]} 39. Qd8+ {[%clk 0:12:37]}  Re8 {[%clk 0:00:47]}
40. Qxd3 {[%clk 0:12:57]}  Rg8 {[%clk 0:00:34]} 41. g3 {[%clk 0:11:42]}  Qb6 {[%clk 0:26:48]} 42. Nd6 {[%clk 0:38:49]}  Rf8 {[%clk 0:24:57]}
43. Rxe5 {[%clk 0:38:46]}  Bg7 {[%clk 0:24:42]} 44. Rh5 {[%clk 0:36:25]}  h6 {[%clk 0:25:04]} 45. Qg6 {[%clk 0:33:51]}  Qc7 {[%clk 0:23:20]}
46. Ne8 {[%clk 0:32:52]} 1-0

[Event "2026 European Womens Championship"]
[Site "Batumi, GE"]
[Date "2026.06.04"]
[Round "10"]
[White "Tirpan, Ceren"]
[Black "Nadanyan, Kiti"]
[Result "1-0"]
[Board "46"]
[TimeControl "5400+30"]
[WhiteFideId "26385309"]
[BlackFideId "13316710"]
[WhiteElo "2209"]
[BlackElo "1801"]
[WhiteTitle "WFM"]
[WhiteClock "0:05:59"]
[BlackClock "0:00:31"]
[Variant "Standard"]

1. Nf3 {[%clk 1:30:56]}  d5 {[%clk 1:30:36]} 2. g3 {[%clk 1:31:20]}  Nf6 {[%clk 1:31:02]} 3. Bg2 {[%clk 1:31:46]}  Bf5 {[%clk 1:30:52]}
4. O-O {[%clk 1:31:29]}  e6 {[%clk 1:30:43]} 5. c4 {[%clk 1:31:33]}  c6 {[%clk 1:30:09]} 6. b3 {[%clk 1:31:58]}  Be7 {[%clk 1:26:37]}
7. Bb2 {[%clk 1:32:22]}  h6 {[%clk 1:26:23]} 8. d3 {[%clk 1:30:46]}  O-O {[%clk 1:25:33]} 9. Nbd2 {[%clk 1:31:06]}  a5 {[%clk 1:24:40]}
10. Qc2 {[%clk 1:31:00]}  a4 {[%clk 1:19:37]} 11. Rab1 {[%clk 1:17:59]}  a3 {[%clk 1:16:08]} 12. Ba1 {[%clk 1:16:57]}  Na6 {[%clk 1:15:51]}
13. Rbd1 {[%clk 1:13:07]}  Nb4 {[%clk 1:14:16]} 14. Qb1 {[%clk 1:13:30]}  Bh7 {[%clk 1:08:05]} 15. Nd4 {[%clk 1:08:33]}  Nd7 {[%clk 0:56:54]}
16. Nc2 {[%clk 1:03:27]}  e5 {[%clk 0:35:11]} 17. Nxb4 {[%clk 0:59:10]}  Bxb4 {[%clk 0:35:37]} 18. cxd5 {[%clk 0:59:26]}  cxd5 {[%clk 0:35:51]}
19. Nf3 {[%clk 0:53:07]}  Re8 {[%clk 0:32:09]} 20. Ne1 {[%clk 0:52:53]}  Nf6 {[%clk 0:23:15]} 21. Nc2 {[%clk 0:50:04]}  Qb6 {[%clk 0:22:56]}
22. Nxb4 {[%clk 0:47:14]}  Qxb4 {[%clk 0:23:20]} 23. Rc1 {[%clk 0:47:37]}  d4 {[%clk 0:22:47]} 24. Rc7 {[%clk 0:37:49]}  Rab8 {[%clk 0:20:55]}
25. Qc1 {[%clk 0:28:05]}  Bf5 {[%clk 0:18:19]} 26. Rc4 {[%clk 0:27:37]}  Qe7 {[%clk 0:18:24]} 27. b4 {[%clk 0:20:32]}  Be6 {[%clk 0:18:17]}
28. Rc5 {[%clk 0:20:11]}  b6 {[%clk 0:12:52]} 29. Rxe5 {[%clk 0:17:02]}  Qxb4 {[%clk 0:13:17]} 30. e3 {[%clk 0:12:47]}  Rec8 {[%clk 0:12:31]}
31. Qd1 {[%clk 0:12:25]}  Bxa2 {[%clk 0:08:10]} 32. Bxd4 {[%clk 0:12:44]}  Bb3 {[%clk 0:03:51]} 33. Qa1 {[%clk 0:12:35]}  Rc2 {[%clk 0:03:57]}
34. Rf5 {[%clk 0:11:17]}  Ne8 {[%clk 0:02:07]} 35. Rf4 {[%clk 0:10:10]}  Qa5 {[%clk 0:01:02]} 36. Bf3 {[%clk 0:10:20]}  Rbc8 {[%clk 0:00:57]}
37. Qb1 {[%clk 0:05:50]}  Be6 {[%clk 0:00:53]} 38. Bxb6 {[%clk 0:03:38]}  Qd2 {[%clk 0:01:20]} 39. Kg2 {[%clk 0:01:14]}  a2 {[%clk 0:00:44]}
40. Qb4 {[%clk 0:00:40]}  Qxb4 {[%clk 0:00:32]} 41. Rxb4 {[%clk 0:01:04]}  Nd6 {[%clk 0:15:02]} 42. e4 {[%clk 0:23:24]}  Rd2 {[%clk 0:05:32]}
43. e5 {[%clk 0:17:27]}  Nf5 {[%clk 0:05:32]} 44. Be4 {[%clk 0:17:46]}  Rdc2 {[%clk 0:03:47]} 45. Ra1 {[%clk 0:12:08]}  Rc1 {[%clk 0:02:36]}
46. Rxa2 {[%clk 0:12:07]}  Nh4+ {[%clk 0:01:06]} 47. gxh4 {[%clk 0:12:30]}  Bxa2 {[%clk 0:01:35]} 48. Be3 {[%clk 0:12:44]}  Rd1 {[%clk 0:00:32]}
49. d4 {[%clk 0:11:34]}  Rd8 {[%clk 0:00:49]} 50. Rb6 {[%clk 0:11:19]}  Be6 {[%clk 0:00:32]} 51. Bf3 {[%clk 0:10:23]}  Bd5 {[%clk 0:00:32]}
52. Bxd5 {[%clk 0:09:17]}  Rxd5 {[%clk 0:00:59]} 53. Rb8+ {[%clk 0:09:41]}  Kh7 {[%clk 0:01:26]} 54. Rf8 {[%clk 0:09:40]}  Rd7 {[%clk 0:01:26]}
55. h5 {[%clk 0:09:16]}  Ra1 {[%clk 0:01:01]} 56. Kf3 {[%clk 0:06:40]}  Rh1 {[%clk 0:00:50]} 57. Ke4 {[%clk 0:07:04]}  Rxh2 {[%clk 0:01:09]}
58. d5 {[%clk 0:07:22]}  Rxh5 {[%clk 0:01:17]} 59. d6 {[%clk 0:07:11]}  f6 {[%clk 0:00:32]} 60. f4 {[%clk 0:05:10]}  fxe5 {[%clk 0:00:37]}
61. fxe5 {[%clk 0:05:33]}  Kg6 {[%clk 0:00:36]} 62. Bc5 {[%clk 0:05:05]}  Rf7 {[%clk 0:00:36]} 63. Rxf7 {[%clk 0:04:58]}  Kxf7 {[%clk 0:01:03]}
64. d7 {[%clk 0:05:22]}  Rh4+ {[%clk 0:00:55]} 65. Kd5 {[%clk 0:05:39]}  Rh1 {[%clk 0:00:31]} 66. d8=Q {[%clk 0:05:59]} 1-0

[Event "2026 European Womens Championship"]
[Site "Batumi, GE"]
[Date "2026.06.04"]
[Round "10"]
[White "Nenova, Andzhelika"]
[Black "Rudzinska, Michalina"]
[Result "0-1"]
[Board "47"]
[TimeControl "5400+30"]
[WhiteFideId "2939355"]
[BlackFideId "1172883"]
[WhiteElo "2072"]
[BlackElo "2200"]
[BlackTitle "WGM"]
[WhiteClock "0:03:05"]
[BlackClock "0:38:16"]
[Variant "Standard"]

1. e4 {[%clk 1:30:11]}  c6 {[%clk 1:30:46]} 2. d4 {[%clk 1:30:35]}  d5 {[%clk 1:31:08]} 3. f3 {[%clk 1:30:55]}  g6 {[%clk 1:30:48]}
4. Nc3 {[%clk 1:30:48]}  Bg7 {[%clk 1:30:28]} 5. e5 {[%clk 1:31:08]}  f6 {[%clk 1:30:09]} 6. f4 {[%clk 1:28:24]}  Nh6 {[%clk 1:29:28]}
7. Nf3 {[%clk 1:28:39]}  Bg4 {[%clk 1:29:29]} 8. h3 {[%clk 1:04:03]}  Bxf3 {[%clk 1:29:16]} 9. Qxf3 {[%clk 1:02:43]}  Nf5 {[%clk 1:16:26]}
10. Qd3 {[%clk 1:00:53]}  fxe5 {[%clk 1:10:15]} 11. fxe5 {[%clk 1:01:03]}  e6 {[%clk 1:07:04]} 12. Be3 {[%clk 0:56:42]}  c5 {[%clk 1:00:07]}
13. Nb5 {[%clk 0:33:52]}  O-O {[%clk 0:54:29]} 14. O-O-O {[%clk 0:28:46]}  Qa5 {[%clk 0:44:37]} 15. dxc5 {[%clk 0:22:50]}  Qxa2 {[%clk 0:42:58]}
16. Nc3 {[%clk 0:12:59]}  Qa1+ {[%clk 0:41:55]} 17. Kd2 {[%clk 0:13:06]}  Qa5 {[%clk 0:41:37]} 18. b4 {[%clk 0:12:46]}  Qxb4 {[%clk 0:41:04]}
19. Rb1 {[%clk 0:13:05]}  Qh4 {[%clk 0:40:24]} 20. g3 {[%clk 0:06:08]}  Qxg3 {[%clk 0:37:54]} 21. Nxd5 {[%clk 0:05:33]}  exd5 {[%clk 0:37:49]}
22. Qxd5+ {[%clk 0:05:49]}  Kh8 {[%clk 0:38:07]} 23. Rb3 {[%clk 0:02:50]}  Nxe3 {[%clk 0:37:59]} 24. Rxe3 {[%clk 0:03:05]}  Bh6 {[%clk 0:38:16]} 0-1

[Event "2026 European Womens Championship"]
[Site "Batumi, GE"]
[Date "2026.06.04"]
[Round "10"]
[White "Rodriguez Redondo, Adhara"]
[Black "Dimitrijevic, Aleksandra"]
[Result "0-1"]
[Board "48"]
[TimeControl "5400+30"]
[WhiteFideId "32065698"]
[BlackFideId "929239"]
[WhiteElo "2200"]
[BlackElo "2059"]
[WhiteTitle "WFM"]
[BlackTitle "WGM"]
[WhiteClock "0:00:31"]
[BlackClock "0:27:12"]
[Variant "Standard"]

1. e4 {[%clk 1:30:57]}  c5 {[%clk 1:26:58]} 2. Nf3 {[%clk 1:31:21]}  e6 {[%clk 1:27:21]} 3. d4 {[%clk 1:31:42]}  cxd4 {[%clk 1:27:46]}
4. Nxd4 {[%clk 1:32:07]}  Nc6 {[%clk 1:28:07]} 5. Nc3 {[%clk 1:32:19]}  d6 {[%clk 1:28:22]} 6. Be3 {[%clk 1:32:14]}  Nge7 {[%clk 1:28:22]}
7. Nb3 {[%clk 1:32:18]}  a6 {[%clk 1:26:14]} 8. Qd2 {[%clk 1:28:47]}  b5 {[%clk 1:25:35]} 9. O-O-O {[%clk 1:27:13]}  Ng6 {[%clk 1:25:26]}
10. f4 {[%clk 1:23:52]}  Be7 {[%clk 1:24:48]} 11. Kb1 {[%clk 1:18:38]}  Qc7 {[%clk 1:22:32]} 12. g4 {[%clk 1:11:56]}  h6 {[%clk 1:22:42]}
13. h4 {[%clk 0:58:54]}  Nxh4 {[%clk 1:20:26]} 14. Qf2 {[%clk 0:54:02]}  g5 {[%clk 1:06:33]} 15. Be2 {[%clk 0:39:40]}  Bd7 {[%clk 1:04:27]}
16. Rd2 {[%clk 0:35:15]}  gxf4 {[%clk 0:59:30]} 17. Bxf4 {[%clk 0:34:56]}  Ng6 {[%clk 0:59:19]} 18. Rxh6 {[%clk 0:33:04]}  Rxh6 {[%clk 0:58:45]}
19. Bxh6 {[%clk 0:33:30]}  Nce5 {[%clk 0:59:08]} 20. Be3 {[%clk 0:29:19]}  Rb8 {[%clk 0:54:35]} 21. Nd4 {[%clk 0:22:19]}  Nc4 {[%clk 0:47:15]}
22. Bxc4 {[%clk 0:22:39]}  bxc4 {[%clk 0:47:39]} 23. Nde2 {[%clk 0:20:13]}  Qb7 {[%clk 0:47:20]} 24. Nd1 {[%clk 0:18:24]}  Qxe4 {[%clk 0:47:26]}
25. g5 {[%clk 0:17:08]}  Qb7 {[%clk 0:43:42]} 26. Nec3 {[%clk 0:16:28]}  Bc6 {[%clk 0:39:33]} 27. Qf1 {[%clk 0:15:55]}  d5 {[%clk 0:39:29]}
28. Ne2 {[%clk 0:11:29]}  Ba3 {[%clk 0:34:42]} 29. Bd4 {[%clk 0:08:34]}  e5 {[%clk 0:34:17]} 30. Bc3 {[%clk 0:08:58]}  Be7 {[%clk 0:32:50]}
31. Qg1 {[%clk 0:08:06]}  d4 {[%clk 0:31:52]} 32. Nxd4 {[%clk 0:08:16]}  exd4 {[%clk 0:32:15]} 33. Bxd4 {[%clk 0:07:36]}  Bd5 {[%clk 0:30:42]}
34. Qh2 {[%clk 0:04:46]}  Bxg5 {[%clk 0:28:25]} 35. Re2+ {[%clk 0:05:07]}  Be6 {[%clk 0:28:50]} 36. Qh7 {[%clk 0:04:06]}  Nf8 {[%clk 0:29:07]}
37. Qh5 {[%clk 0:02:36]}  Be7 {[%clk 0:29:18]} 38. Ne3 {[%clk 0:02:28]}  Rd8 {[%clk 0:27:28]} 39. Bg7 {[%clk 0:01:02]}  Bg4 {[%clk 0:26:58]}
40. Nd5 {[%clk 0:00:31]}  Rxd5 {[%clk 0:27:12]} 0-1